[Event "45th FIDE Olympiad 2024"]
[Site "Budapest"]
[Date "2024.09.14"]
[Round "4.71"]
[White "Smirin, Ilia"]
[Black "Mehmeti, Dritan"]
[Result "1-0"]
[ECO "C00"]
[WhiteElo "2575"]
[BlackElo "2364"]
[Annotator "TA"]
[PlyCount "85"]
[EventDate "2024.09.05"]
[EventType "team-tourn"]
[EventCountry "HUN"]
[SourceTitle "playchess.com"]
[Source "ChessBase"]
[SourceQuality "1"]
[WhiteTeam "Israel"]
[BlackTeam "Albania"]
[WhiteTeamCountry "ISR"]
[BlackTeamCountry "ALB"]
[TimeControl "40/5400+30:1800+30"]

{[%evp 19,85,-45,-29,-37,-21,-29,-23,-49,-41,-41,-45,-74,0,-7,0,-12,-9,-23,13,19,37,17,53,36,57,46,51,41,71,71,59,68,69,63,78,10,21,20,142,141,134,0,143,137,262,240,372,356,418,390,461,467,433,162,164,164,167,155,390,388,390,364,372,367,29973,29976,29968,29961]} 1. Nf3 Nf6 2. g3 e6 3. Bg2 d5 4. O-O c5 5. d3 Nc6 6. Nbd2 Be7 7. e4 O-O 8. e5 Nd7 9. Re1 b5 10. Nf1 Re8 11. h4 Bf8 12. Bf4 {[%cal Oc2c4]} Bb7 13. h5 {[%cal Oh5h6] Black has an edge.} h6 14. N1h2 b4 15. g4 f6 ({Black should play} 15... Be7 $1 $17) 16. exf6 $11 Qxf6 17. Qc1 e5 18. Bg3 Nd4 {[%cal Bc6d4,Bd4e6,Be6g5][%mdl 32]} 19. Nh4 e4 20. c3 Ne6 (20... Nb5 {looks sharper.} 21. dxe4 Bd6 22. Nf5 Bxg3 23. Nxg3 bxc3 24. bxc3 Ne5) 21. dxe4 dxe4 22. Bxe4 Bxe4 23. Rxe4 {Threatens to win with Qe3.} Ng5 24. Rxe8 Rxe8 25. cxb4 $1 Re4 {Wards off Qc4+} 26. Qd1 Qxb2 27. bxc5 ({Better is} 27. Qb3+ $16 Qxb3 28. axb3) 27... Bxc5 28. Qd5+ Kh7 (28... Re6 $1 $11 29. Rf1 Qc3 30. Qa8+ Nf8) 29. Qf5+ $16 Kg8 30. Qd5+ Kh7 31. Rf1 {Some like it hot} Qd4 {[#]} (31... Qa3 $16 {was worth a try.} 32. Qf5+ Kg8) 32. Qf5+ $1 $18 Kg8 (32... Kh8 $142 33. Kg2 Qa4) 33. N2f3 Qd3 34. Kg2 Nxf3 35. Nxf3 Bf8 36. g5 {Prevents Nf6.} (36. Rc1 {Black must now prevent Rc8.} Nf6 37. Rc8) 36... Re3 37. Qg4 Re4 {[#]} 38. Rd1 $3 {[%mdl 512]} Qxd1 {A mistake that costs the game.} (38... Nc5 $16 {might work better.} 39. Rxd3 Rxg4) (38... Rxg4 39. Rxd3) 39. Qxe4 hxg5 40. Qe6+ (40. Nxg5 Nf6 41. Qe6+ Kh8 $18) 40... Kh8 41. Qf7 (41. Nxg5 Nf6 $16) 41... Bc5 $2 (41... Qa4 $18 42. h6 (42. Nxg5 Qc6+ 43. Nf3 Ba3 $16) 42... gxh6 43. Be5+ Nxe5 44. Qxf8+ Kh7) 42. h6 gxh6 43. Be5+ {Weighted Error Value: White=0.20 (precise) /Black=0.56.  Loses game:     	---       	Black=1      Mistake:       	White=2     	Black=5      Inaccurate:     	White=2     	Black=3      OK:         	White=11    	Black=7      Best:        	White=2     	Black=4      Strong:       	White=2     	---        Brilliant:      	White=1     	---} 1-0

[Event "45th FIDE Olympiad 2024"]
[Site "Budapest"]
[Date "2024.09.14"]
[Round "4.71"]
[White "Adam, Jamal"]
[Black "Mohamed Ali Dima"]
[Result "1/2-1/2"]
[ECO "D30"]
[WhiteElo "2013"]
[BlackElo "1761"]
[PlyCount "100"]
[EventDate "2024.09.05"]
[EventType "team-tourn"]
[EventCountry "HUN"]
[WhiteTeam "Chad"]
[BlackTeam "Djibouti"]
[WhiteTeamCountry "CHD"]
[BlackTeamCountry "DJI"]
[TimeControl "40/5400+30:1800+30"]

1. d4 d5 2. c4 e6 3. Nf3 a6 4. Nbd2 Nf6 5. e3 dxc4 6. Bxc4 b5 7. Bd3 c5 8. O-O Bb7 9. a4 c4 10. Be2 Bd6 11. axb5 axb5 12. Rxa8 Bxa8 13. b3 c3 14. Bxb5+ Nbd7 15. Nc4 Bb4 16. Ba3 Bxa3 17. Nxa3 Qa5 18. Nc4 Qb4 19. Nfe5 Ke7 20. Bc6 Nxe5 21. Nxe5 Qd6 22. Bxa8 Rxa8 23. Qf3 Rc8 24. Rc1 Rc7 25. h3 Qa3 26. Qd1 Nd5 27. Nc4 Qa2 28. Qc2 Qxc2 29. Rxc2 Rb7 30. e4 Nf4 31. Kh2 Rxb3 32. Na5 Rb2 33. Rxc3 Rxf2 34. Kg3 Rf1 35. Re3 g5 36. Nc6+ Kd6 37. Ne5 Ke7 38. Nf3 f6 39. h4 h6 40. hxg5 fxg5 41. d5 exd5 42. exd5+ Kd6 43. Re1 Rxe1 44. Nxe1 Kxd5 45. Kg4 Ke4 46. g3 Nd3 47. Nxd3 Kxd3 48. Kh5 Ke4 49. Kxh6 Kf3 50. Kxg5 Kxg3 1/2-1/2

[Event "45th FIDE Olympiad 2024"]
[Site "Budapest"]
[Date "2024.09.14"]
[Round "4.72"]
[White "Veleshnja, Zino"]
[Black "Postny, Evgeny"]
[Result "0-1"]
[ECO "E20"]
[WhiteElo "2294"]
[BlackElo "2577"]
[Annotator "TA"]
[PlyCount "76"]
[EventDate "2024.09.05"]
[EventType "team-tourn"]
[EventCountry "HUN"]
[SourceTitle "playchess.com"]
[Source "ChessBase"]
[SourceQuality "1"]
[WhiteTeam "Albania"]
[BlackTeam "Israel"]
[WhiteTeamCountry "ALB"]
[BlackTeamCountry "ISR"]
[TimeControl "40/5400+30:1800+30"]

{[%evp 16,76,15,0,0,0,0,-33,-33,-37,-16,-20,-15,-17,-17,-68,-56,-131,-58,-73,-72,-82,-43,-152,-131,-131,-148,-132,-108,-117,-99,-90,-71,-91,-75,-108,-74,-52,0,-19,0,0,0,-25,-15,-16,0,-56,-18,-213,-226,-355,-359,-709,-703,-662,-384,-457,-453,-6215,-6187,-29978,-29979]} 1. d4 Nf6 2. c4 e6 3. Nc3 Bb4 4. g3 Bxc3+ 5. bxc3 d6 6. Nf3 O-O 7. Bg2 Nc6 8. O-O Rb8 9. Qd3 b6 10. Nd2 Qd7 11. c5 bxc5 {Black is slightly better.} 12. dxc5 Ne5 13. Qd4 Bb7 14. cxd6 Bxg2 15. Kxg2 (15. dxc7 $11 Qxc7 16. Kxg2) 15... cxd6 $15 16. Nf3 (16. Ba3 $15) 16... Nc6 (16... Qc6 $17 17. Qxa7 Ra8 (17... Qxc3 18. Bf4 $15)) 17. Qh4 Ne7 18. Rd1 Nf5 19. Qh3 ({White should play} 19. Qc4 $15) 19... Ne4 20. g4 Ne7 {Black is more active. A dynamic duo of knights.} (20... Nxc3 $2 {perishes.} 21. Rd3 $18) 21. Ng5 Nxg5 22. Bxg5 Ng6 23. Qg3 f6 24. Be3 e5 25. f3 Rfc8 26. Qe1 Rb2 (26... e4 $5 27. h3 exf3+ 28. exf3 h5 $17) 27. Rd2 Rxd2 28. Qxd2 Ne7 29. Rd1 d5 $36 {[%mdl 2048] Black is more active.} 30. Bf2 Qc6 31. Qe3 (31. Bxa7 $11 Ra8 (31... Qxc3 32. Bf2 $17) 32. Be3) 31... a6 32. Rd3 $2 {[#] White does not recover from this.} (32. g5 $11 {and White stays safe.}) 32... d4 $1 $19 ({Don't take} 32... Ng6 33. Bg3 $17) 33. Qc1 (33. cxd4 $142 Nd5 34. Qd2 Nf4+ 35. Kg3) 33... Nd5 34. e3 {Prevents Nf4+.} (34. Kf1) 34... dxc3 35. Qc2 Qc4 36. a3 Rb8 {[#] ...Rb2 is the strong threat.} 37. Rd1 (37. Rxd5 $142 Qxd5 38. Qxc3) 37... Rb2 38. Qc1 Qe2 {[%csl LRe3,LRf2] Weighted Error Value: White=0.72/Black=0.22 (precise) .  Loses game:     	White=1     	---        Mistake:       	White=7     	Black=1      Inaccurate:     	White=3     	Black=4      OK:         	White=7     	Black=9      Best:        	White=1     	Black=1      Strong:       	---       	Black=1} 0-1

[Event "45th FIDE Olympiad 2024"]
[Site "Budapest"]
[Date "2024.09.14"]
[Round "4.73"]
[White "Greet, Andrew N"]
[Black "Naiditsch, Arkadij"]
[Result "0-1"]
[ECO "A21"]
[WhiteElo "2405"]
[BlackElo "2643"]
[Annotator "RC"]
[PlyCount "78"]
[EventDate "2024.09.05"]
[EventType "team-tourn"]
[EventCountry "HUN"]
[SourceTitle "playchess.com"]
[Source "ChessBase"]
[SourceQuality "1"]
[WhiteTeam "Scotland"]
[BlackTeam "Bulgaria"]
[WhiteTeamCountry "SCO"]
[BlackTeamCountry "BUL"]
[TimeControl "40/5400+30:1800+30"]

1. c4 e5 2. Nc3 d6 3. Nf3 f5 4. g3 Be7 5. d3 Nf6 6. Bg2 O-O 7. O-O a5 8. a3 Qe8 9. c5 Kh8 10. cxd6 cxd6 11. e4 Nc6 12. Re1 f4 13. gxf4 exf4 14. Bxf4 Bg4 15. h3 Bh5 16. Be3 Nd7 17. Nd5 Nde5 18. Bf4 Bg5 19. Bxe5 Nxe5 20. Nxg5 Bxd1 21. Raxd1 h6 22. d4 Nc4 23. b3 Nxa3 24. Nc7 Qg6 25. Nge6 Rf7 26. Nxa8 Qxe6 27. e5 d5 28. Rc1 Nb5 29. Red1 b6 30. Rc2 Ra7 31. Nxb6 Qxb6 32. Rc8+ Kh7 33. Bxd5 Nxd4 34. Kh1 g6 35. Re1 Qb5 36. Bg2 Qxb3 37. Rd8 Nf3 38. Rc1 Nh4 39. e6 Nxg2 0-1

[Event "45th FIDE Olympiad 2024"]
[Site "Budapest"]
[Date "2024.09.14"]
[Round "4.73"]
[White "KIGIGHA, Bomo Lovet"]
[Black "Koumba, Mounguen Jose Evrard"]
[Result "1-0"]
[ECO "A20"]
[WhiteElo "2217"]
[BlackElo "1957"]
[PlyCount "71"]
[EventDate "2024.09.05"]
[EventType "team-tourn"]
[EventCountry "HUN"]
[WhiteTeam "Nigeria"]
[BlackTeam "Gabon"]
[WhiteTeamCountry "NGR"]
[BlackTeamCountry "GAB"]
[TimeControl "40/5400+30:1800+30"]

1. c4 e5 2. g3 c6 3. Nf3 e4 4. Nd4 d5 5. cxd5 cxd5 6. Bg2 Nc6 7. Nxc6 bxc6 8. O-O Nf6 9. Nc3 Bc5 10. d3 exd3 11. Qxd3 a5 12. Bg5 O-O 13. Qc2 Be7 14. Rfd1 Ra7 15. Na4 Bd7 16. Rac1 h6 17. Bxf6 Bxf6 18. e4 Qb8 19. b3 Rc8 20. Nc5 d4 21. Nxd7 Rxd7 22. Bh3 Qa7 23. Qc5 Qc7 24. Bxd7 Qxd7 25. e5 Bg5 26. Rc4 Be7 27. Qxd4 Qe6 28. Qg4 f5 29. exf6 Qxg4 30. Rxg4 Bxf6 31. Rc4 c5 32. Rd5 Be7 33. Rd7 Kf7 34. Re4 Re8 35. Ra7 a4 36. Raxa4 1-0

[Event "45th FIDE Olympiad 2024"]
[Site "Budapest"]
[Date "2024.09.14"]
[Round "4.74"]
[White "Petrov, Martin"]
[Black "Olson, Hamish"]
[Result "1-0"]
[ECO "C54"]
[WhiteElo "2536"]
[BlackElo "2384"]
[Annotator "ChessBase"]
[PlyCount "83"]
[EventDate "2024.09.05"]
[EventType "team-tourn"]
[EventCountry "HUN"]
[SourceTitle "playchess.com"]
[Source "ChessBase"]
[SourceQuality "1"]
[WhiteTeam "Bulgaria"]
[BlackTeam "Scotland"]
[WhiteTeamCountry "BUL"]
[BlackTeamCountry "SCO"]
[TimeControl "40/5400+30:1800+30"]

1. e4 e5 2. Nf3 Nc6 3. Bc4 Nf6 4. d3 Bc5 5. O-O d6 6. c3 a6 7. a4 Ba7 8. Re1 O-O 9. h3 b5 10. Ba2 h6 11. Nbd2 b4 12. Nf1 bxc3 13. bxc3 Re8 14. Ng3 Ne7 15. d4 Nc6 16. Be3 exd4 17. cxd4 d5 18. e5 Ne4 19. Nxe4 dxe4 20. Qc2 Nxd4 21. Nxd4 Bxd4 22. Rad1 c5 23. Qxe4 Be6 24. Bxe6 Rxe6 25. Bxd4 cxd4 26. Rxd4 Qf8 27. f4 Rae8 28. Kh2 f6 29. Rd5 fxe5 30. Rxe5 Rxe5 31. fxe5 Re6 32. Rd1 Qe8 33. Rd5 Qg6 34. Qf4 Qh5 35. Rc5 Kh7 36. a5 Kh8 37. Qf8+ Kh7 38. g4 Qg5 39. Qf5+ Rg6 40. Qe4 h5 41. Rc6 hxg4 42. Qxg6+ 1-0

[Event "45th FIDE Olympiad 2024"]
[Site "Budapest"]
[Date "2024.09.14"]
[Round "4.74"]
[White "Bongo Akanga Ndjila, Barthelemy"]
[Black "Osunfuyi, Abimbola"]
[Result "0-1"]
[ECO "D51"]
[WhiteElo "1894"]
[BlackElo "2164"]
[PlyCount "80"]
[EventDate "2024.09.05"]
[EventType "team-tourn"]
[EventCountry "HUN"]
[WhiteTeam "Gabon"]
[BlackTeam "Nigeria"]
[WhiteTeamCountry "GAB"]
[BlackTeamCountry "NGR"]
[TimeControl "40/5400+30:1800+30"]

1. d4 d5 2. c4 e6 3. Nc3 Nf6 4. Bg5 Bb4 5. e3 Nbd7 6. a3 Bxc3+ 7. bxc3 O-O 8. Nf3 c5 9. cxd5 exd5 10. Bd3 Qa5 11. O-O c4 12. Bc2 Qxc3 13. Ne5 Nxe5 14. Bxf6 Nd3 15. Bh4 Bf5 16. Ra2 Qa5 17. Bb1 Rfe8 18. Qf3 Bg6 19. Rd1 Rac8 20. Qh3 Qa4 21. Bc2 Qc6 22. f4 Be4 23. f5 f6 24. g4 b5 25. Bxd3 Bxd3 26. g5 fxg5 27. Bxg5 Qd7 28. Rf2 Rf8 29. Qg3 Rxf5 30. Bf4 Rcf8 31. Qg4 R8f6 32. Rg2 Rg6 33. Qh3 Rxg2+ 34. Qxg2 Rf6 35. Kf2 Be4 36. Qg3 Rg6 37. Qh4 Rg2+ 38. Kf1 h6 39. Qh5 c3 40. Qe5 Qh3 {0-} 0-1

[Event "45th FIDE Olympiad 2024"]
[Site "Budapest"]
[Date "2024.09.14"]
[Round "4.75"]
[White "Waldhausen Gordon, Frederick"]
[Black "Petkov, Momchil"]
[Result "1/2-1/2"]
[ECO "E92"]
[WhiteElo "2351"]
[BlackElo "2540"]
[Annotator "ChessBase"]
[PlyCount "81"]
[EventDate "2024.09.05"]
[EventType "team-tourn"]
[EventCountry "HUN"]
[SourceTitle "playchess.com"]
[Source "ChessBase"]
[SourceQuality "1"]
[WhiteTeam "Scotland"]
[BlackTeam "Bulgaria"]
[WhiteTeamCountry "SCO"]
[BlackTeamCountry "BUL"]
[TimeControl "40/5400+30:1800+30"]

1. c4 Nf6 2. Nf3 g6 3. Nc3 Bg7 4. e4 d6 5. d4 O-O 6. Be2 e5 7. dxe5 dxe5 8. Qxd8 Rxd8 9. Bg5 Re8 10. Nd5 Nxd5 11. cxd5 c6 12. dxc6 Nxc6 13. O-O f5 14. Bc4+ Be6 15. Bxe6+ Rxe6 16. Be3 Bf6 17. Rfd1 f4 18. Bc5 g5 19. h3 b6 20. Ba3 Nd4 21. Kf1 Rc8 22. Rac1 Rxc1 23. Rxc1 Rc6 24. Rxc6 Nxc6 25. Ke2 Kf7 26. Kd3 b5 27. Bc5 h6 28. Bd6 a6 29. Kc3 h5 30. g4 hxg4 31. hxg4 Ke6 32. Bc5 Bd8 33. Kd3 Kf6 34. a3 Be7 35. Bxe7+ Nxe7 36. Kc3 Nc6 37. b3 Kg6 38. Ne1 Kf6 39. Nf3 Kg6 40. Ne1 Kf6 41. Nf3 1/2-1/2

[Event "45th FIDE Olympiad 2024"]
[Site "Budapest"]
[Date "2024.09.14"]
[Round "4.76"]
[White "Grigorov, Grigor"]
[Black "Gourlay, Iain"]
[Result "1/2-1/2"]
[ECO "A13"]
[WhiteElo "2514"]
[BlackElo "2296"]
[Annotator "ChessBase"]
[PlyCount "65"]
[EventDate "2024.09.05"]
[EventType "team-tourn"]
[EventCountry "HUN"]
[SourceTitle "playchess.com"]
[Source "ChessBase"]
[SourceQuality "1"]
[WhiteTeam "Bulgaria"]
[BlackTeam "Scotland"]
[WhiteTeamCountry "BUL"]
[BlackTeamCountry "SCO"]
[TimeControl "40/5400+30:1800+30"]

1. Nf3 d5 2. g3 e6 3. Bg2 Nf6 4. c4 Bd6 5. d4 O-O 6. Bg5 h6 7. Bxf6 Qxf6 8. c5 Be7 9. Nc3 b6 10. e4 bxc5 11. exd5 Bb7 12. O-O Rd8 13. dxe6 fxe6 14. Re1 cxd4 15. Qb3 dxc3 16. Qxb7 Nd7 17. bxc3 Nc5 18. Qc6 Rab8 19. Rad1 Bd6 20. Nd4 Rb2 21. Re2 Rdb8 22. Rdd2 R2b6 23. Qf3 Rb1+ 24. Bf1 Qxf3 25. Nxf3 Rc1 26. Rc2 Rbb1 27. Rxc1 Rxc1 28. Nd4 Kf7 29. Kg2 e5 30. Nc6 e4 31. Nxa7 Rxc3 32. Nb5 Rc1 33. Rd2 1/2-1/2

[Event "45th FIDE Olympiad 2024"]
[Site "Budapest"]
[Date "2024.09.14"]
[Round "4.77"]
[White "Kozak, Adam"]
[Black "Tran, Thanh Tu"]
[Result "0-1"]
[ECO "E49"]
[WhiteElo "2609"]
[BlackElo "2387"]
[Annotator "TA"]
[PlyCount "132"]
[EventDate "2024.09.05"]
[EventType "team-tourn"]
[EventCountry "HUN"]
[SourceTitle "playchess.com"]
[Source "ChessBase"]
[SourceQuality "1"]
[WhiteTeam "Hungary B"]
[BlackTeam "Japan"]
[BlackTeamCountry "JPN"]
[TimeControl "40/5400+30:1800+30"]

{[%evp 19,132,33,56,0,46,39,68,52,53,22,115,115,115,108,111,105,112,104,101,93,114,98,98,89,97,89,89,89,98,73,69,77,127,108,129,115,115,115,122,115,122,97,112,90,113,111,111,91,91,85,103,50,51,44,50,35,35,35,35,35,55,44,54,54,65,54,54,54,81,10,11,0,89,54,112,0,78,52,100,9,104,41,62,74,82,89,89,73,94,-37,73,78,81,-2278,-2192,-1402,-164,-122,-167,-136,-155,-141,-161,-726,-728,-659,-822,-826,-815,-29980,-29981,-29995,-29996,-29998,-29999]} 1. d4 Nf6 2. c4 e6 3. Nc3 Bb4 4. e3 O-O 5. Bd3 d5 6. a3 Bxc3+ 7. bxc3 dxc4 8. Bxc4 {[%cal Bd3c4,Bc4a2,Ba2b1][%mdl 32]} c5 9. Ne2 Nbd7 10. O-O e5 11. Bb2 (11. Ba2 $14) 11... Qc7 (11... Nb6 $11 {feels stronger.} 12. Ba2 Be6) 12. Ba2 c4 13. a4 {White is slightly better.} b6 {[%cal Bb7b6,Bb6b5][%mdl 32]} 14. f3 a6 (14... e4 $11) 15. Bb1 Bb7 16. e4 b5 17. Qe1 Rfe8 18. Bc2 Bc6 19. a5 Rab8 20. d5 Bb7 21. Qd2 Bc8 22. Kh1 h6 23. Ng3 Nf8 24. Ba3 Ng6 25. Bb4 Nf4 ({Black should try} 25... h5) 26. Rad1 g5 27. Ne2 Ng6 28. Qe3 Bd7 29. Rf2 Kh7 30. Qd2 Qa7 31. Ng3 Rg8 32. Nf1 Nf4 33. Ne3 Rbe8 {Wards off Be7} 34. g3 Nh3 35. Rg2 (35. Rff1 $16) 35... h5 36. Rf1 Rg6 37. Nd1 h4 38. g4 Nf4 39. Rgf2 Qc7 40. Ne3 Rgg8 41. Qc1 Rc8 42. Re1 Ne8 43. Qa3 Rg6 {[#]} 44. d6 Qa7 $11 45. Rd2 Rc6 (45... Nf6 $11) 46. Nd5 Nf6 (46... Rgxd6 $14 47. Bxd6 (47. Red1 Be6 $11) 47... Rxd6) 47. Nb6 (47. Qa1 $16) 47... h3 (47... Be6 $11) 48. Bc5 {[%cal Od2d5] And now Rd5! would win.} Qb7 (48... Kh6 $14) 49. Kg1 (49. Nd5 $16) 49... Kh6 (49... Be6 $11 {keeps the balance.}) 50. Be3 (50. Nd5 $16) 50... Ne8 51. Red1 Rf6 52. Rf2 Kg7 {[%cal Rc6d6]} (52... Rfxd6 $2 53. Rfd2 Qc7 54. Rxd6+ Rxd6 (54... Nxd6 $2 {is the wrong capture.} 55. Nd5 $18) 55. Rxd6+ Nxd6 56. Qc5 $18) 53. Nd5 Rfxd6 54. Rfd2 {[#]} (54. Bc5 $16) 54... Bxg4 55. fxg4 $16 Qd7 56. Rf1 $2 {[%mdl 8192]} (56. Bxf4 $16 exf4 57. Kh1) 56... Qxg4+ $19 57. Kf2 Nxd5 $2 (57... Rxd5 58. exd5 Rf6) 58. exd5 Rf6+ 59. Ke1 Rxf1+ 60. Kxf1 Rf6+ $40 {[%mdl 128] Black attacks with force.} 61. Ke1 $2 (61. Rf2 Rxf2+ 62. Bxf2) 61... Qf3 {[%csl Gf6][%cal Rf3f1]} 62. Re2 Qh1+ ({Weaker is} 62... Qxd5 63. Qe7 Qh1+ 64. Kd2 Rd6+ 65. Bd4 exd4 66. Qxg5+ Kf8 67. Qe7+ Kg7 68. Qg5+ Kf8 69. Qe7+ Kg7 70. Qg5+ $11) 63. Kd2 {[#]} Rf1 $1 (63... Qxd5+ $2 {too greedy.} 64. Kc1 $18) 64. Bf2 Qxd5+ {Black mates.} 65. Ke3 Nf6 {[%cal Rf6g4]} 66. Bf5 {[#]} Ng4+ $1 {[%mdl 512] Weighted Error Value: White=0.31/Black=0.31.  Loses game:     	White=1     	---        Mistake:       	White=7     	Black=9      Inaccurate:     	White=3     	Black=2      OK:         	White=11    	Black=16     Best:        	White=3     	Black=3} 0-1

[Event "45th FIDE Olympiad 2024"]
[Site "Budapest"]
[Date "2024.09.14"]
[Round "4.77"]
[White "Kabamwanishi, Mashala"]
[Black "Ayyad, Husain"]
[Result "0-1"]
[ECO "C28"]
[WhiteElo "1914"]
[BlackElo "2129"]
[PlyCount "79"]
[EventDate "2024.09.05"]
[EventType "team-tourn"]
[EventCountry "HUN"]
[WhiteTeam "Democratic Republic of the Congo"]
[BlackTeam "Bahrain"]
[BlackTeamCountry "BRN"]
[TimeControl "40/5400+30:1800+30"]

1. e4 e5 2. Nc3 Nc6 3. Bc4 Nf6 4. d3 Na5 5. a3 Nxc4 6. dxc4 Bc5 7. Qd3 O-O 8. Be3 Bxe3 9. Qxe3 d6 10. Nge2 Be6 11. b3 Ng4 12. Qd3 f5 13. f3 Nh6 14. exf5 Nxf5 15. Ne4 Qe7 16. O-O c6 17. N2g3 Rad8 18. Nxf5 Bxf5 19. Qe3 d5 20. cxd5 cxd5 21. Nd2 d4 22. Qe2 d3 23. cxd3 Bxd3 24. Qe3 Bxf1 25. Kxf1 Qd7 26. Ke2 Qb5+ 27. Nc4 e4 28. Kf2 exf3 29. gxf3 Rde8 30. Qd3 Qc5+ 31. Kg2 b5 32. Nd2 Qg5+ 33. Kh1 Rd8 34. Ne4 Rxd3 35. Nxg5 Rxb3 36. Kg2 h6 37. Ne6 Rfxf3 38. Nd4 Rxa3 39. Rb1 Rfd3 40. Nxb5 {0-} 0-1

[Event "45th FIDE Olympiad 2024"]
[Site "Budapest"]
[Date "2024.09.14"]
[Round "4.78"]
[White "Nanjo, Ryosuke"]
[Black "Banusz, Tamas"]
[Result "0-1"]
[ECO "B30"]
[WhiteElo "2372"]
[BlackElo "2605"]
[Annotator "TA"]
[PlyCount "146"]
[EventDate "2024.09.05"]
[EventType "team-tourn"]
[EventCountry "HUN"]
[SourceTitle "playchess.com"]
[Source "ChessBase"]
[SourceQuality "1"]
[WhiteTeam "Japan"]
[BlackTeam "Hungary B"]
[WhiteTeamCountry "JPN"]
[TimeControl "40/5400+30:1800+30"]

{[%evp 58,146,-97,-110,-116,-115,-96,-134,-139,-158,-158,-194,-153,-194,-145,-127,-64,-63,-67,-59,-55,-79,-66,-86,-86,-75,-83,-83,-84,-50,-48,-186,-184,-252,-261,-290,-280,-340,-332,-349,-362,-351,-341,-347,-357,-339,-322,-473,-470,-495,-561,-564,-536,-557,-562,-680,-684,-1118,-1132,-1166,-1034,-1083,-1097,-1287,-1275,-1486,-1327,-2618,-2374,-3345,-2058,-3233,-3300,-3273,-3177,-2521,-2134,-29982,-29982,-29982,-29983,-29985,-29984,-29986,-29987,-29990,-29991,-29991,-29992,-29992,-29993]} 1. e4 c5 2. Nf3 Nc6 3. Bb5 Nf6 4. Nc3 Nd4 5. e5 Nxb5 6. Nxb5 Nd5 7. Ng5 f6 $1 {7...f6 scores better than 7...f5.} 8. Qf3 {B30: Sicilian: 2...Nc6 3 Bb5, lines without ...g6.} Nc7 9. exf6 exf6 10. Qh5+ g6 11. Qe2+ Ne6 12. Nxe6 dxe6 13. b3 e5 $146 ({Predecessor:} 13... Bd7 14. Bb2 Kf7 15. O-O-O a6 16. Nc3 Bc6 17. Ne4 Be7 18. Rhe1 Qd5 19. f3 h5 {½-½ So,W (2770)-Carlsen,M (2863) Chess24 Banter Blitz Cup Final 2020 (4.8)}) 14. Bb2 Bh6 15. O-O-O O-O 16. h4 Be6 17. g4 Bf4 18. g5 a6 19. Nc3 fxg5 20. hxg5 Qxg5 21. Rdg1 Qe7 22. Ne4 Rad8 23. Kb1 Bd5 24. d3 Rd7 25. Rh5 Rf7 26. Nd2 Rd6 27. Ne4 Bxe4 28. Qxe4 Re6 29. Rh3 Qd7 30. Rh4 Qc6 31. Qe2 Rf5 32. Rgh1 h5 33. Rg1 Kf7 34. Bc3 b5 35. a3 Qd5 (35... e4 $1 $19 36. dxe4 Rxe4 (36... Qxe4 $2 37. Qd1 $19)) 36. f3 $17 {[#]} b4 ({Better is} 36... Re8 $1 $17 {[%mdl 512]} 37. Qf2 (37. Qg2 Re6) 37... Re7) 37. axb4 $15 cxb4 38. Bxb4 a5 39. Ba3 Rb6 40. Qe4 Qxe4 41. dxe4 Rff6 42. Rd1 Bg3 43. Rd7+ Kg8 44. Rh1 ({But not} 44. Rd8+ Kg7 45. Rh3 Rxf3 $19) (44. Rh3 $1 $15 Rxf3 45. Be7) 44... Rxf3 $19 45. Ra7 {[#]} (45. Kb2 {is a better defense.}) 45... Rbf6 $1 $19 46. Ka2 Rf1 47. Ra8+ Kg7 48. Rh3 h4 49. Be7 R6f4 50. Rxa5 Rxe4 51. Ra4 Rff4 (51... Rxa4+ 52. bxa4 Rf4 53. a5 $19) 52. Rxe4 (52. c4 $142) 52... Rxe4 $19 53. Ka3 Kf7 54. Bd8 Rd4 55. Bg5 Ke6 56. b4 Kf5 57. Be7 g5 58. b5 g4 59. Rh1 h3 60. b6 e4 61. Rf1+ Ke6 62. Bf6 Bd6+ 63. Ka2 Ra4+ 64. Kb3 Rb4+ 65. Kc3 Rxb6 66. Bh4 g3 67. Bxg3 Bxg3 68. Kd4 Rb4+ 69. c4 Be5+ 70. Kxe4 Rxc4+ 71. Kf3 Rf4+ 72. Ke2 Rxf1 73. Kxf1 Bd4 0-1

[Event "45th FIDE Olympiad 2024"]
[Site "Budapest"]
[Date "2024.09.14"]
[Round "4.78"]
[White "Ayyad, Maher"]
[Black "Mimbasa Kutesa, Willy"]
[Result "1-0"]
[ECO "D07"]
[WhiteElo "1980"]
[BlackElo "1848"]
[PlyCount "103"]
[EventDate "2024.09.05"]
[EventType "team-tourn"]
[EventCountry "HUN"]
[WhiteTeam "Bahrain"]
[BlackTeam "Democratic Republic of the Congo"]
[WhiteTeamCountry "BRN"]
[TimeControl "40/5400+30:1800+30"]

1. d4 d5 2. Nf3 Nc6 3. c4 Bg4 4. cxd5 Bxf3 5. gxf3 Qxd5 6. e3 e6 7. Nc3 Bb4 8. Bd2 Bxc3 9. bxc3 Nge7 10. e4 Qh5 11. Bg2 O-O 12. O-O Ng6 13. f4 Qh4 14. Qf3 Qf6 15. Qg3 Na5 16. e5 Qf5 17. Rfc1 Nc4 18. Be3 Nb2 19. Bh3 Qe4 20. Qg2 Qxg2+ 21. Bxg2 Nd3 22. Rcb1 Ndxf4 23. Bxf4 Nxf4 24. Bxb7 Rab8 25. Bf3 Rb6 26. Rb3 Rfb8 27. Rab1 g5 28. Kf1 h5 29. Be4 Kf8 30. f3 Ke7 31. Kf2 Kd7 32. Ke3 a5 33. c4 a4 34. Rxb6 Rxb6 35. Rxb6 cxb6 36. a3 Ng2+ 37. Kf2 Nh4 38. Bc2 Nf5 39. Bxf5 exf5 40. f4 g4 41. Kg3 f6 42. Kh4 Ke7 43. Kxh5 Kf7 44. Kh6 fxe5 45. dxe5 b5 46. cxb5 Ke6 47. b6 Kd7 48. e6+ Kxe6 49. b7 Kd5 50. b8=Q Ke4 51. Qe5+ Kf3 52. Qxf5 1-0

[Event "45th FIDE Olympiad 2024"]
[Site "Budapest"]
[Date "2024.09.14"]
[Round "4.79"]
[White "Prohaszka, Peter"]
[Black "Aoshima, Mirai"]
[Result "1-0"]
[ECO "E10"]
[WhiteElo "2542"]
[BlackElo "2385"]
[Annotator "ChessBase"]
[PlyCount "51"]
[EventDate "2024.09.05"]
[EventType "team-tourn"]
[EventCountry "HUN"]
[SourceTitle "playchess.com"]
[Source "ChessBase"]
[SourceQuality "1"]
[WhiteTeam "Hungary B"]
[BlackTeam "Japan"]
[BlackTeamCountry "JPN"]
[TimeControl "40/5400+30:1800+30"]

1. d4 Nf6 2. c4 e6 3. Nf3 c5 4. d5 b5 5. e4 Nxe4 6. Bd3 Nf6 7. Nc3 bxc4 8. Bxc4 Ba6 9. Bxa6 Nxa6 10. Bg5 Qb6 11. O-O Qxb2 12. dxe6 fxe6 13. Ne5 Be7 14. Bxf6 gxf6 15. Qxd7+ Kf8 16. Qxe6 fxe5 17. Nd5 Re8 18. Rab1 Qc2 19. Nxe7 Rxe7 20. Qf6+ Ke8 21. Qxh8+ Kf7 22. f4 e4 23. Qxh7+ Kf8 24. Qh8+ Kf7 25. f5 e3 26. f6 1-0